fUST/lending_fUST_20240508
["ID","MTS","AMOUNT","RATE_DAILY","PERIOD"]
[326578112,1715116252764,-500.0,0.00017519,2]
[326578114,1715116252775,-1144.63,0.00017519,2]
[326578116,1715116252786,-843.47,0.00017519,2]
[326578118,1715116252796,-500.0,0.00017519,2]
[326578120,1715116252806,-500.0,0.00017519,2]
[326578122,1715116252817,-500.0,0.00017519,2]
[326578124,1715116252831,-500.0,0.00017519,2]
[326578126,1715116252842,-500.0,0.00017519,2]
[326578128,1715116252852,-500.0,0.00017519,2]
[326578130,1715116252862,-500.0,0.00017519,2]
[326578132,1715116252874,-387.04717748,0.00017519,2]
[326578134,1715116252885,-500.0,0.00017519,2]
[326578136,1715116252895,-670.73,0.00017519,2]
[326578138,1715116252908,-500.0,0.00017519,2]
[326578140,1715116252919,-153.0,0.00017562,2]
[326578142,1715116252930,-153.0,0.00017562,2]
[326578144,1715116252940,-1965.18081837,0.000176,2]
[326578146,1715116252950,-1442.93,0.00017787,2]
[326578148,1715116252960,-5014.93,0.00017787,2]
[326578150,1715116252970,-500.0,0.00017787,2]
[326578152,1715116252980,-6936.23,0.00017787,2]
[326578154,1715116252990,-500.0,0.00017787,2]
[326578156,1715116252999,-713.0,0.00017787,2]
[326578158,1715116253010,-964.21,0.00017787,2]
[326578160,1715116253021,-884.01,0.00017787,2]
[326578162,1715116253031,-511.93,0.00017787,2]
[326578164,1715116253040,-4632.07,0.00017787,2]
[326578166,1715116253052,-1727.79,0.00017787,2]
[326578168,1715116253061,-1608.72,0.00017787,2]
[326578170,1715116253071,-627.6,0.00017787,2]
[326578172,1715116253081,-500.0,0.00017787,2]
[326578174,1715116253092,-500.0,0.00017788,2]
[326578176,1715116253101,-500.0,0.00017788,2]
[326578178,1715116253111,-500.0,0.00017788,2]
[326578179,1715116253120,-1080.17,0.00017788,2]
[326578181,1715116253131,-500.0,0.00017788,2]
[326578183,1715116253140,-559.59,0.00017788,2]
[326578185,1715116253151,-500.0,0.00017788,2]
[326578188,1715116253162,-500.0,0.00017788,2]
[326578189,1715116253172,-815.92,0.00017788,2]
[326578192,1715116253182,-547.36,0.00017788,2]
[326578194,1715116253192,-2171.45,0.00017788,2]
[326578196,1715116253202,-588.33,0.00017788,2]
[326578197,1715116253212,-1075.88,0.00017788,2]
[326578199,1715116253222,-596.75,0.00017788,2]
[326578201,1715116253233,-571.42,0.00017788,2]
[326578203,1715116253243,-933.17,0.00017788,2]
[326578205,1715116253253,-500.0,0.00017788,2]
[326578206,1715116253264,-500.0,0.00017788,2]
[326578207,1715116253275,-1708.15,0.00017788,2]
[326578208,1715116253284,-2468.39,0.00017788,2]
[326578209,1715116253295,-500.0,0.00017788,2]
[326578211,1715116253305,-500.0,0.00017788,2]
[326578213,1715116253315,-500.0,0.00017788,2]
[326578215,1715116253325,-500.0,0.00017788,2]
[326578217,1715116253336,-750.52,0.00017788,2]
[326578219,1715116253346,-962.14,0.00017788,2]
[326578221,1715116253356,-500.0,0.00017788,2]
[326578223,1715116253372,-3889.55,0.00017788,2]
[326578225,1715116253382,-500.0,0.00017788,2]
[326578227,1715116253392,-2177.42,0.00017788,2]
[326578229,1715116253402,-4508.22,0.00017788,2]
[326578231,1715116253412,-500.0,0.00017788,2]
[326578233,1715116253422,-500.0,0.0001779,2]
[326578235,1715116253433,-3637.97,0.0001779,2]
[326578237,1715116253443,-3578.53,0.0001779,2]
[326578239,1715116253452,-500.0,0.0001779,2]
[326578241,1715116253462,-3520.96,0.0001779,2]
[326578243,1715116253472,-500.0,0.0001779,2]
[326578245,1715116253482,-500.0,0.0001779,2]
[326578247,1715116253492,-500.0,0.0001779,2]
[326578249,1715116253501,-500.0,0.0001779,2]
[326578251,1715116253512,-1239.16,0.0001779,2]
[326578253,1715116253522,-3826.83,0.0001779,2]
[326578255,1715116253532,-500.0,0.0001779,2]
[326578257,1715116253543,-500.0,0.0001779,2]
[326578259,1715116253553,-500.0,0.0001779,2]
[326578262,1715116253563,-569.41,0.0001779,2]
[326578263,1715116253573,-2122.03,0.0001779,2]
[326578265,1715116253582,-23516.81,0.0001779,2]
[326578267,1715116253592,-500.0,0.00017792,2]
[326578269,1715116253602,-500.0,0.00017792,2]
[326578271,1715116253612,-636.44,0.00017792,2]
[326578273,1715116253621,-871.1,0.00017792,2]
[326578275,1715116253631,-1641.05,0.00017792,2]
[326578277,1715116253641,-500.0,0.00017792,2]
[326578279,1715116253651,-500.0,0.00017792,2]
[326578281,1715116253661,-500.0,0.00017792,2]
[326578283,1715116253671,-623.57,0.00017792,2]
[326578285,1715116253681,-500.0,0.00017792,2]
[326578287,1715116253690,-500.0,0.00017792,2]
[326578289,1715116253700,-1222.17,0.00017792,2]
[326578291,1715116253711,-1177.74,0.00017792,2]
[326578293,1715116253720,-500.0,0.00017792,2]
[326578295,1715116253730,-6956.44,0.00017792,2]
[326578297,1715116253740,-500.0,0.00017792,2]
[326578299,1715116253749,-500.0,0.00017792,2]
[326578301,1715116253759,-559.57838367,0.00017792,2]
[326578303,1715116253769,-1808.74,0.00017792,2]
[326578305,1715116253779,-816.62,0.00017792,2]
[326578307,1715116253793,-500.0,0.00017792,2]
[326578309,1715116253806,-4892.91,0.00017792,2]
[326578311,1715116253817,-500.0,0.00017792,2]
[326578313,1715116253830,-500.0,0.00017793,2]
[326578315,1715116253841,-500.0,0.00017793,2]
[326578317,1715116253851,-500.0,0.00017793,2]
[326578319,1715116253864,-546.69,0.00017793,2]
[326578321,1715116253874,-500.0,0.00017793,2]
[326578323,1715116253884,-500.0,0.00017793,2]
[326578325,1715116253894,-500.0,0.00017793,2]
[326578327,1715116253906,-500.0,0.00017793,2]
[326578329,1715116253916,-500.0,0.00017793,2]
[326578331,1715116253926,-130.279932,0.00017793,2]
[326578349,1715116254099,-991.46263386,0.00016,2]
[326578351,1715116254109,-101.13874937,0.00016418,2]
[326578363,1715116254221,-890.32388449,0.00016418,2]
[326578365,1715116254231,-500.0,0.00016694,2]
[326578367,1715116254242,-369.720068,0.00017793,2]
[326578369,1715116254252,-1144.63,0.00017793,2]
[326578371,1715116254262,-843.47,0.00017793,2]
[326578373,1715116254273,-569.66332142,0.00017793,2]
[326578375,1715116254283,-500.0,0.00017793,2]
[326578377,1715116254293,-500.0,0.00017793,2]
[326578379,1715116254302,-500.0,0.00017793,2]
[326578381,1715116254311,-500.0,0.00017793,2]
[326578383,1715116254322,-500.0,0.00017793,2]
[326578385,1715116254332,-500.0,0.00017793,2]
[326578386,1715116254342,-500.0,0.00017793,2]
[326578389,1715116254353,-670.73,0.00017793,2]
[326578391,1715116254364,-500.0,0.00017793,2]
[326578393,1715116254374,-832.54909824,0.00017808,2]
[326578395,1715116254383,-218.23091185,0.00018,2]
[326578397,1715116254392,-223.4477693,0.00018,2]
[326578399,1715116254402,-7359.38575588,0.00018,2]
[326578401,1715116254412,-1500.0,0.00018,2]
[326578403,1715116254422,-1500.0,0.00018,2]
[326578405,1715116254432,-1500.0,0.00018,2]
[326578407,1715116254442,-1500.0,0.00018,2]
[326578409,1715116254452,-1500.0,0.00018,2]
[326578411,1715116254461,-1500.0,0.00018,2]
[326578413,1715116254471,-1523.27,0.00018,2]
[326578415,1715116254481,-1312.63590983,0.00018,2]
[326578417,1715116254490,-1030.61327412,0.00018,2]
[326578419,1715116254500,-203.0522404,0.00018,2]
[326578421,1715116254510,-1000.0,0.00018,2]
[326578423,1715116254520,-153.0,0.00018005,2]
[326578425,1715116254530,-306.0,0.00018005,2]
[326578427,1715116254540,-620.23979829,0.00018041,2]
[326578429,1715116254550,-5014.93,0.00018061,2]
[326578431,1715116254559,-460.58633166,0.00018061,2]
[326578433,1715116254569,-6936.23,0.00018061,2]
[326578435,1715116254579,-500.0,0.00018061,2]
[326578437,1715116254588,-713.0,0.00018061,2]
[326578439,1715116254598,-964.21,0.00018061,2]
[326578441,1715116254608,-884.01,0.00018061,2]
[326578443,1715116254618,-511.93,0.00018061,2]
[326578445,1715116254627,-4632.07,0.00018061,2]
[326578447,1715116254637,-1727.79,0.00018061,2]
[326578449,1715116254647,-1608.72,0.00018061,2]
[326578451,1715116254657,-627.6,0.00018061,2]
[326578453,1715116254667,-500.0,0.00018061,2]
[326578455,1715116254677,-500.0,0.00018062,2]
[326578457,1715116254687,-500.0,0.00018062,2]
[326578459,1715116254697,-500.0,0.00018062,2]
[326578461,1715116254707,-1080.17,0.00018062,2]
[326578463,1715116254716,-303.27625357,0.00018062,2]
[326578465,1715116254726,-559.59,0.00018062,2]
[326578467,1715116254735,-503.02110952,0.00018062,2]
[326578469,1715116254745,-500.0,0.00018062,2]
[326578481,1715116254866,-815.92,0.00018062,2]
[326578483,1715116254878,-547.36,0.00018062,2]
[326578485,1715116254889,-2171.45,0.00018062,2]
[326578488,1715116254899,-588.33,0.00018062,2]
[326578490,1715116254911,-1075.88,0.00018062,2]
[326578491,1715116254922,-596.75,0.00018062,2]
[326578494,1715116254933,-933.17,0.00018062,2]
[326578496,1715116254943,-500.0,0.00018062,2]
[326578497,1715116254953,-500.0,0.00018062,2]
[326578500,1715116254963,-1708.15,0.00018062,2]
[326578502,1715116254974,-2468.39,0.00018062,2]
[326578504,1715116254985,-500.0,0.00018062,2]
[326578506,1715116254994,-255.31218186,0.00018062,2]
[326578508,1715116255004,-500.0,0.00018062,2]
[326578510,1715116255015,-370.87043588,0.00018062,2]
[326578512,1715116255026,-750.52,0.00018062,2]
[326578514,1715116255036,-962.14,0.00018062,2]
[326578516,1715116255046,-500.0,0.00018062,2]
[326578518,1715116255057,-3889.55,0.00018062,2]
[326578520,1715116255067,-500.0,0.00018062,2]
[326578522,1715116255077,-2177.42,0.00018062,2]
[326578524,1715116255087,-4508.22,0.00018062,2]
[326578526,1715116255097,-500.0,0.00018062,2]
[326578528,1715116255107,-500.0,0.00018064,2]
[326578530,1715116255118,-3637.97,0.00018064,2]
[326578532,1715116255128,-3578.53,0.00018064,2]
[326578534,1715116255138,-500.0,0.00018064,2]
[326578536,1715116255148,-3520.96,0.00018064,2]
[326578538,1715116255157,-500.0,0.00018064,2]
[326578540,1715116255167,-500.0,0.00018064,2]
[326578542,1715116255177,-500.0,0.00018064,2]
[326578544,1715116255187,-500.0,0.00018064,2]
[326578546,1715116255196,-1239.16,0.00018064,2]
[326578548,1715116255206,-3826.83,0.00018064,2]
[326578550,1715116255217,-500.0,0.00018064,2]
[326578552,1715116255227,-500.0,0.00018064,2]
[326578554,1715116255237,-506.80887144,0.00018064,2]
[326578556,1715116255246,-569.41,0.00018064,2]
[326578558,1715116255256,-2122.03,0.00018064,2]
[326578560,1715116255267,-23516.81,0.00018064,2]
[326578562,1715116255278,-411.33645221,0.00018066,2]
[326578564,1715116255288,-500.0,0.00018066,2]
[326578566,1715116255299,-636.44,0.00018066,2]
[326578568,1715116255309,-871.1,0.00018066,2]
[326578570,1715116255319,-1641.05,0.00018066,2]
[326578572,1715116255329,-500.0,0.00018066,2]
[326578574,1715116255339,-500.0,0.00018066,2]
[326578576,1715116255348,-500.0,0.00018066,2]
[326578578,1715116255359,-623.57,0.00018066,2]
[326578580,1715116255372,-500.0,0.00018066,2]
[326578582,1715116255382,-500.0,0.00018066,2]
[326578584,1715116255392,-1222.17,0.00018066,2]
[326578586,1715116255403,-1177.74,0.00018066,2]
[326578588,1715116255413,-500.0,0.00018066,2]
[326578590,1715116255423,-6956.44,0.00018066,2]
[326578592,1715116255434,-500.0,0.00018066,2]
[326578594,1715116255444,-500.0,0.00018066,2]
[326578595,1715116255454,-1808.74,0.00018066,2]
[326578597,1715116255464,-816.62,0.00018066,2]
[326578599,1715116255474,-500.0,0.00018066,2]
[326578601,1715116255484,-4892.91,0.00018066,2]
[326578603,1715116255494,-500.0,0.00018066,2]
[326578605,1715116255503,-500.0,0.00018067,2]
[326578607,1715116255513,-500.0,0.00018067,2]
[326578609,1715116255523,-500.0,0.00018067,2]
[326578611,1715116255533,-546.69,0.00018067,2]
[326578613,1715116255543,-500.0,0.00018067,2]
[326578615,1715116255553,-500.0,0.00018067,2]
[326578617,1715116255564,-500.0,0.00018067,2]
[326578619,1715116255573,-500.0,0.00018067,2]
[326578621,1715116255583,-152.00823154,0.00018067,2]
[326578623,1715116255592,-500.0,0.00018067,2]
[326578625,1715116255602,-1144.63,0.00018067,2]
[326578627,1715116255612,-843.47,0.00018067,2]
[326578629,1715116255622,-500.0,0.00018067,2]
[326578631,1715116255632,-500.0,0.00018067,2]
[326578633,1715116255641,-209.15032662,0.00018067,2]
[326578636,1715116255651,-506.547353,0.00018067,2]
[326578639,1715116255661,-500.0,0.00018067,2]
[326578641,1715116255670,-500.0,0.00018067,2]
[326578643,1715116255680,-500.0,0.00018067,2]
[326578647,1715116255689,-670.73,0.00018067,2]
[326578651,1715116255699,-500.0,0.00018067,2]
[326578655,1715116255709,-5014.93,0.00018335,2]
[326578656,1715116255719,-6936.23,0.00018335,2]
[326578658,1715116255728,-500.0,0.00018335,2]
[326578660,1715116255738,-713.0,0.00018335,2]
[326578662,1715116255749,-964.21,0.00018335,2]
[326578664,1715116255759,-884.01,0.00018335,2]
[326578666,1715116255769,-511.93,0.00018335,2]
[326578668,1715116255780,-4632.07,0.00018335,2]
[326578670,1715116255790,-1727.79,0.00018335,2]
[326578672,1715116255799,-1608.72,0.00018335,2]
[326578674,1715116255809,-627.6,0.00018335,2]
[326578676,1715116255818,-500.0,0.00018335,2]
[326578678,1715116255830,-500.0,0.00018336,2]
[326578680,1715116255840,-500.0,0.00018336,2]
[326578682,1715116255849,-500.0,0.00018336,2]
[326578683,1715116255859,-1080.17,0.00018336,2]
[326578685,1715116255869,-559.59,0.00018336,2]
[326578687,1715116255879,-500.0,0.00018336,2]
[326578689,1715116255889,-815.92,0.00018336,2]
[326578691,1715116255899,-547.36,0.00018336,2]
[326578694,1715116255916,-2171.45,0.00018336,2]
[326578696,1715116255933,-588.33,0.00018336,2]
[326578699,1715116255948,-1075.88,0.00018336,2]
[326578701,1715116255961,-596.75,0.00018336,2]
[326578704,1715116255975,-933.17,0.00018336,2]
[326578706,1715116255990,-500.0,0.00018336,2]
[326578708,1715116256004,-511.11491914,0.00018336,2]
[326578711,1715116256021,-1708.15,0.00018336,2]
[326578714,1715116256039,-2468.39,0.00018336,2]
[326578716,1715116256053,-500.0,0.00018336,2]
[326578718,1715116256067,-500.0,0.00018336,2]
[326578721,1715116256081,-750.52,0.00018336,2]
[326578723,1715116256096,-962.14,0.00018336,2]
[326578725,1715116256109,-500.0,0.00018336,2]
[326578727,1715116256122,-3889.55,0.00018336,2]
[326578730,1715116256135,-500.0,0.00018336,2]
[326578732,1715116256147,-2177.42,0.00018336,2]
[326578734,1715116256162,-4508.22,0.00018336,2]
[326578737,1715116256176,-500.0,0.00018336,2]
[326578739,1715116256191,-500.0,0.00018338,2]
[326578742,1715116256207,-3637.97,0.00018338,2]
[326578744,1715116256220,-3578.53,0.00018338,2]
[326578746,1715116256231,-500.0,0.00018338,2]
[326578748,1715116256243,-3520.96,0.00018338,2]
[326578751,1715116256256,-500.0,0.00018338,2]
[326578753,1715116256271,-500.0,0.00018338,2]
[326578755,1715116256282,-500.0,0.00018338,2]
[326578758,1715116256295,-500.0,0.00018338,2]
[326578760,1715116256307,-1239.16,0.00018338,2]
[326578762,1715116256322,-3826.83,0.00018338,2]
[326578764,1715116256335,-500.0,0.00018338,2]
[326578767,1715116256346,-500.0,0.00018338,2]
[326578769,1715116256358,-569.41,0.00018338,2]
[326578771,1715116256374,-2122.03,0.00018338,2]
[326578773,1715116256386,-23516.81,0.00018338,2]
[326578776,1715116256398,-500.0,0.0001834,2]
[326578778,1715116256411,-636.44,0.0001834,2]
[326578780,1715116256423,-871.1,0.0001834,2]
[326578782,1715116256435,-1641.05,0.0001834,2]
[326578784,1715116256449,-500.0,0.0001834,2]
[326578787,1715116256461,-500.0,0.0001834,2]
[326578789,1715116256473,-500.0,0.0001834,2]
[326578791,1715116256485,-623.57,0.0001834,2]
[326578793,1715116256498,-500.0,0.0001834,2]
[326578795,1715116256510,-500.0,0.0001834,2]
[326578798,1715116256524,-1222.17,0.0001834,2]
[326578800,1715116256537,-1177.74,0.0001834,2]
[326578802,1715116256550,-500.0,0.0001834,2]
[326578804,1715116256563,-6956.44,0.0001834,2]
[326578807,1715116256576,-500.0,0.0001834,2]
[326578809,1715116256589,-500.0,0.0001834,2]
[326578811,1715116256603,-1808.74,0.0001834,2]
[326578813,1715116256615,-816.62,0.0001834,2]
[326578815,1715116256628,-500.0,0.0001834,2]
[326578818,1715116256641,-4892.91,0.0001834,2]
[326578820,1715116256653,-500.0,0.0001834,2]
[326578822,1715116256666,-500.0,0.00018341,2]
[326578825,1715116256679,-500.0,0.00018341,2]
[326578827,1715116256691,-500.0,0.00018341,2]
[326578829,1715116256704,-546.69,0.00018341,2]
[326578831,1715116256717,-388.65361956,0.00018341,2]
[326578833,1715116256729,-500.0,0.00018341,2]
[326578836,1715116256741,-500.0,0.00018341,2]
[326578838,1715116256754,-492.58998089,0.00018341,2]
[326578840,1715116256766,-368.55870317,0.00018341,2]
[326578842,1715116256777,-1144.63,0.00018341,2]
[326578844,1715116256786,-843.47,0.00018341,2]
[326578846,1715116256795,-500.0,0.00018341,2]
[326578848,1715116256805,-500.0,0.00018341,2]
[326578850,1715116256815,-500.0,0.00018341,2]
[326578852,1715116256826,-217.32552387,0.00018341,2]
[326578854,1715116256839,-500.0,0.00018341,2]
[326578855,1715116256848,-670.73,0.00018341,2]
[326578858,1715116256859,-500.0,0.00018341,2]
[326578859,1715116256868,-306.0,0.00018356,2]
[326578861,1715116256879,-604.49379352,0.000185,2]
[326578863,1715116256889,-14995.84479291,0.000185,2]
[326578866,1715116256906,-9767.15520709,0.000185,2]
[326578868,1715116256916,-1317.0,0.000185,2]
[326578870,1715116256926,-1000.0,0.000185,2]
[326578872,1715116256936,-5014.93,0.00018609,2]
[326578874,1715116256946,-6936.23,0.00018609,2]
[326578875,1715116256956,-500.0,0.00018609,2]
[326578877,1715116256966,-713.0,0.00018609,2]
[326578879,1715116256976,-964.21,0.00018609,2]
[326578881,1715116256987,-884.01,0.00018609,2]
[326578883,1715116256997,-511.93,0.00018609,2]
[326578885,1715116257007,-4632.07,0.00018609,2]
[326578887,1715116257017,-1727.79,0.00018609,2]
[326578889,1715116257027,-1608.72,0.00018609,2]
[326578891,1715116257037,-627.6,0.00018609,2]
[326578893,1715116257047,-500.0,0.00018609,2]
[326578895,1715116257057,-500.0,0.0001861,2]
[326578897,1715116257067,-500.0,0.0001861,2]
[326578899,1715116257078,-514.09,0.0001861,2]
[326578901,1715116257087,-1080.17,0.0001861,2]
[326578903,1715116257097,-559.59,0.0001861,2]
[326578905,1715116257108,-500.0,0.0001861,2]
[326578907,1715116257119,-815.92,0.0001861,2]
[326578909,1715116257129,-547.36,0.0001861,2]
[326578911,1715116257138,-2171.45,0.0001861,2]
[326578932,1715116257349,-588.33,0.0001861,2]
[326578935,1715116257367,-1075.88,0.0001861,2]
[326578937,1715116257384,-596.75,0.0001861,2]
[326578939,1715116257396,-933.17,0.0001861,2]
[326578941,1715116257406,-500.0,0.0001861,2]
[326578943,1715116257416,-1708.15,0.0001861,2]
[326578945,1715116257428,-2468.39,0.0001861,2]
[326578947,1715116257438,-500.0,0.0001861,2]
[326578949,1715116257448,-581.3477409,0.0001861,2]
[326578951,1715116257458,-750.52,0.0001861,2]
[326578953,1715116257468,-962.14,0.0001861,2]
[326578955,1715116257478,-500.0,0.0001861,2]
[326578957,1715116257489,-3889.55,0.0001861,2]
[326578959,1715116257499,-500.0,0.0001861,2]
[326578961,1715116257509,-2177.42,0.0001861,2]
[326578963,1715116257520,-1346.29834493,0.0001861,2]
[326578965,1715116257535,-1129.34726464,0.0001861,2]
[326578968,1715116257549,-2032.57439043,0.0001861,2]
[326578970,1715116257559,-500.0,0.0001861,2]
[326578972,1715116257569,-500.0,0.00018612,2]
[326578973,1715116257580,-3637.97,0.00018612,2]
[326578975,1715116257592,-3578.53,0.00018612,2]
[326578977,1715116257605,-500.0,0.00018612,2]
[326578979,1715116257616,-3520.96,0.00018612,2]
[326578981,1715116257627,-500.0,0.00018612,2]
[326578983,1715116257637,-500.0,0.00018612,2]
[326578985,1715116257648,-500.0,0.00018612,2]
[326578987,1715116257658,-500.0,0.00018612,2]
[326578989,1715116257668,-1239.16,0.00018612,2]
[326578990,1715116257679,-3826.83,0.00018612,2]
[326578991,1715116257691,-172.50338024,0.00018612,2]
[326578992,1715116257702,-500.0,0.00018612,2]
[326578993,1715116257712,-569.41,0.00018612,2]
[326578994,1715116257722,-2122.03,0.00018612,2]
[326578995,1715116257733,-23516.81,0.00018612,2]
[326578996,1715116257744,-481.40202907,0.00018614,2]
[326578997,1715116257754,-636.44,0.00018614,2]
[326578998,1715116257764,-871.1,0.00018614,2]
[326578999,1715116257776,-1641.05,0.00018614,2]
[326579000,1715116257786,-500.0,0.00018614,2]
[326579001,1715116257796,-500.0,0.00018614,2]
[326579002,1715116257806,-500.0,0.00018614,2]
[326579003,1715116257817,-623.57,0.00018614,2]
[326579004,1715116257829,-500.0,0.00018614,2]
[326579006,1715116257841,-500.0,0.00018614,2]
[326579008,1715116257851,-1222.17,0.00018614,2]
[326579010,1715116257862,-440.83915189,0.00018614,2]
[326579110,1715116258893,-2580.8,0.00016405,2]
[326579112,1715116258908,-5367.24730527,0.00016405,2]
[326579114,1715116258918,-153.0,0.000165,2]
[326579116,1715116258928,-153.0,0.00017562,2]
[326579118,1715116258938,-736.90084811,0.00018614,2]
[326579120,1715116258949,-500.0,0.00018614,2]
[326579122,1715116258959,-6956.44,0.00018614,2]
[326579124,1715116258969,-500.0,0.00018614,2]
[326579126,1715116258980,-500.0,0.00018614,2]
[326579128,1715116258990,-1808.74,0.00018614,2]
[326579130,1715116258999,-816.62,0.00018614,2]
[326579132,1715116259010,-500.0,0.00018614,2]
[326579134,1715116259020,-4892.91,0.00018614,2]
[326579136,1715116259031,-500.0,0.00018614,2]
[326579138,1715116259041,-500.0,0.00018615,2]
[326579140,1715116259051,-460.750307,0.00018615,2]
[326579142,1715116259061,-500.0,0.00018615,2]
[326579144,1715116259072,-546.69,0.00018615,2]
[326579146,1715116259082,-500.0,0.00018615,2]
[326579148,1715116259092,-500.0,0.00018615,2]
[326579150,1715116259104,-1144.63,0.00018615,2]
[326579152,1715116259114,-843.47,0.00018615,2]
[326579154,1715116259124,-500.0,0.00018615,2]
[326579156,1715116259134,-500.0,0.00018615,2]
[326579158,1715116259145,-500.0,0.00018615,2]
[326579160,1715116259154,-500.0,0.00018615,2]
[326579162,1715116259164,-670.73,0.00018615,2]
[326579164,1715116259175,-500.0,0.00018615,2]
[326579166,1715116259185,-153.0,0.0001874,2]
[326579168,1715116259195,-17434.93202235,0.00018797,2]
[326579170,1715116259207,-306.0,0.00018877,2]
[326579172,1715116259218,-153.0,0.00018877,2]
[326579174,1715116259228,-6936.23,0.00018883,2]
[326579176,1715116259238,-500.0,0.00018883,2]
[326579178,1715116259248,-713.0,0.00018883,2]
[326579180,1715116259258,-964.21,0.00018883,2]
[326579182,1715116259269,-884.01,0.00018883,2]
[326579184,1715116259280,-511.93,0.00018883,2]
[326579186,1715116259291,-4632.07,0.00018883,2]
[326579188,1715116259301,-1727.79,0.00018883,2]
[326579189,1715116259311,-1608.72,0.00018883,2]
[326579192,1715116259321,-627.6,0.00018883,2]
[326579194,1715116259332,-500.0,0.00018883,2]
[326579196,1715116259343,-500.0,0.00018884,2]
[326579198,1715116259353,-500.0,0.00018884,2]
[326579200,1715116259363,-1080.17,0.00018884,2]
[326579202,1715116259377,-559.59,0.00018884,2]
[326579203,1715116259387,-500.0,0.00018884,2]
[326579205,1715116259396,-815.92,0.00018884,2]
[326579207,1715116259407,-547.36,0.00018884,2]
[326579210,1715116259417,-2171.45,0.00018884,2]
[326579212,1715116259428,-588.33,0.00018884,2]
[326579214,1715116259438,-1075.88,0.00018884,2]
[326579216,1715116259448,-596.75,0.00018884,2]
[326579218,1715116259458,-933.17,0.00018884,2]
[326579220,1715116259468,-500.0,0.00018884,2]
[326579222,1715116259478,-1708.15,0.00018884,2]
[326579223,1715116259488,-2468.39,0.00018884,2]
[326579225,1715116259500,-500.0,0.00018884,2]
[326579228,1715116259510,-750.52,0.00018884,2]
[326579230,1715116259521,-962.14,0.00018884,2]
[326579232,1715116259533,-500.0,0.00018884,2]
[326579234,1715116259543,-3889.55,0.00018884,2]
[326579235,1715116259553,-500.0,0.00018884,2]
[326579237,1715116259563,-2177.42,0.00018884,2]
[326579240,1715116259574,-4508.22,0.00018884,2]
[326579242,1715116259584,-500.0,0.00018884,2]
[326579244,1715116259594,-500.0,0.00018886,2]
[326579245,1715116259604,-3637.97,0.00018886,2]
[326579248,1715116259614,-3578.53,0.00018886,2]
[326579249,1715116259624,-500.0,0.00018886,2]
[326579252,1715116259635,-3520.96,0.00018886,2]
[326579254,1715116259645,-500.0,0.00018886,2]
[326579256,1715116259656,-623.94218311,0.00018886,2]
[326579258,1715116259665,-500.0,0.00018886,2]
[326579260,1715116259675,-500.0,0.00018886,2]
[326579262,1715116259684,-1239.16,0.00018886,2]
[326579264,1715116259695,-3826.83,0.00018886,2]
[326579266,1715116259705,-500.0,0.00018886,2]
[326579268,1715116259715,-569.41,0.00018886,2]